bitfinex/quotes_BTCUSD_20230907
["timestamp","ask_amount","ask_price","bid_price","bid_amount"]
[1694073185093,0.10124597,25789.0,25788.0,4.26256865]
[1694073190551,0.10124597,25789.0,25788.0,4.2625202]
[1694073193666,0.10121174,25789.0,25788.0,4.2625202]
[1694073201311,0.008104,25789.0,25788.0,4.2625202]
[1694073207890,0.10121174,25789.0,25788.0,4.2625202]
[1694073208367,0.008104,25789.0,25788.0,4.2625202]
[1694073208824,0.10121174,25789.0,25788.0,4.2625202]
[1694073212096,0.10121174,25789.0,25788.0,3.4869662]
[1694073212787,0.10121174,25789.0,25788.0,4.2625202]
[1694073216751,0.24087335,25789.0,25788.0,4.2625202]
[1694073220016,0.14776561,25789.0,25788.0,4.2625202]
[1694073220281,0.24092432,25789.0,25788.0,4.2395202]
[1694073220504,0.33406236,25789.0,25788.0,3.83287493]
[1694073220800,0.47634988,25789.0,25788.0,1.95923042]
[1694073221016,0.29013439,25789.0,25788.0,1.95923042]
[1694073221442,0.42716662,25789.0,25788.0,1.95923042]
[1694073221658,0.47642765,25789.0,25788.0,1.95923042]
[1694073222843,0.29013439,25789.0,25788.0,0.26822242]
[1694073223052,0.39787768,25789.0,25788.0,0.26822242]
[1694073223531,0.39787768,25789.0,25788.0,0.245217]
[1694073223959,0.39787768,25789.0,25788.0,0.26805295]
[1694073224674,0.29013439,25789.0,25788.0,0.26805295]
[1694073225095,0.29013439,25789.0,25788.0,1.04360695]
[1694073225315,0.29013439,25789.0,25788.0,1.81916095]
[1694073225952,0.47634119,25789.0,25788.0,1.81916095]
[1694073229373,0.24357183,25789.0,25788.0,1.81916095]
[1694073230384,0.2983769,25789.0,25788.0,2.59471495]
[1694073231367,0.24357183,25789.0,25788.0,2.59471495]
[1694073234413,0.1943108,25789.0,25788.0,2.59471495]
[1694073239540,0.33388841,25789.0,25788.0,2.59471495]
[1694073243631,0.1943108,25789.0,25788.0,2.59471495]
[1694073244182,0.1943108,25789.0,25788.0,2.98136022]
[1694073244393,0.24071965,25789.0,25788.0,3.10126022]
[1694073244606,0.10114917,25789.0,25788.0,3.10126022]
[1694073250809,0.24071965,25789.0,25788.0,3.10126022]
[1694073256814,0.14767448,25789.0,25788.0,3.10126022]
[1694073257068,0.24075406,25789.0,25788.0,3.10126022]
[1694073257912,0.14767448,25789.0,25788.0,3.10126022]
[1694073258295,0.24075661,25789.0,25788.0,3.10126022]
[1694073265538,0.14767448,25789.0,25788.0,3.10126022]
[1694073269684,0.24077927,25789.0,25788.0,3.10126022]
[1694073270434,0.24078001,25789.0,25788.0,3.10126022]
[1694073270646,0.14767448,25789.0,25788.0,3.10126022]
[1694073270849,0.24077993,25789.0,25788.0,3.10126022]
[1694073271087,0.10120945,25789.0,25788.0,3.10126022]
[1694073271539,0.008104,25789.0,25788.0,3.10126022]
[1694073274800,0.00843219,25789.0,25788.0,3.10126022]
[1694073298973,0.10153764,25789.0,25788.0,3.10126022]
[1694073300556,0.00843219,25789.0,25788.0,3.10126022]
[1694073301389,0.10153764,25789.0,25788.0,3.10126022]
[1694073301770,0.00843219,25789.0,25788.0,3.10126022]
[1694073301980,0.10153764,25789.0,25788.0,3.10126022]
[1694073303693,0.10153764,25789.0,25788.0,3.07626022]
[1694073303903,0.10153764,25789.0,25788.0,3.06126022]
[1694073304767,0.10153764,25789.0,25788.0,3.03626022]
[1694073304987,0.10153764,25789.0,25788.0,3.06126022]
[1694073305130,0.10153764,25789.0,25788.0,3.03626022]
[1694073305769,0.10153764,25789.0,25788.0,3.06126022]
[1694073310803,0.24110812,25789.0,25788.0,2.67461495]
[1694073311255,0.2180111,25789.0,25788.0,1.89906095]
[1694073311482,0.4042179,25789.0,25788.0,1.89906095]
[1694073311695,0.4042179,25789.0,25788.0,1.12350695]
[1694073311696,0.31023921,25789.0,25788.0,1.12350695]
[1694073312609,0.51109893,25789.0,25788.0,0.34795295]
[1694073312858,0.59766149,25789.0,25788.0,0.22805295]
[1694073313082,1.14041613,25789.0,25788.0,0.22805295]
[1694073313689,1.91594013,25789.0,25788.0,0.07283595]
[1694073314532,1.91594013,25789.0,25788.0,0.04783595]
[1694073314880,1.91594013,25789.0,25788.0,0.07283595]
[1694073315315,1.91594013,25789.0,25788.0,0.04783595]
[1694073315536,2.1486358,25789.0,25788.0,0.04783595]
[1694073315772,2.1486358,25789.0,25788.0,0.07283595]
[1694073315773,1.3731118,25789.0,25788.0,0.07283595]
[1694073316557,1.37308051,25789.0,25788.0,0.07283595]
[1694073317344,0.39669679,25789.0,25788.0,0.07283595]
[1694073318970,0.16403241,25789.0,25788.0,0.07283595]
[1694073319397,0.39664233,25789.0,25788.0,0.07283595]
[1694073322970,0.3266339,25789.0,25788.0,0.07283595]
[1694073323402,0.3266339,25789.0,25788.0,0.84838995]
[1694073326637,0.51260495,25789.0,25788.0,0.84838995]
[1694073328557,0.27999503,25789.0,25788.0,0.84838995]
[1694073328818,0.51260495,25789.0,25788.0,0.84838995]
[1694073329774,0.82335564,25789.0,25788.0,0.84838995]
[1694073331398,0.51260495,25789.0,25788.0,0.84838995]
[1694073331638,0.27999503,25789.0,25788.0,0.84838995]
[1694073332306,0.27999503,25789.0,25788.0,0.85702582]
[1694073334758,0.37385643,25789.0,25788.0,0.85702582]
[1694073335238,0.23440324,25789.0,25788.0,0.85702582]
[1694073335950,0.68004666,25789.0,25788.0,0.85702582]
[1694073336929,0.54059475,25789.0,25788.0,0.85702582]
[1694073339291,0.54059475,25789.0,25788.0,1.63257982]
[1694073340271,0.23440324,25789.0,25788.0,1.63257982]
[1694073341471,0.37387401,25789.0,25788.0,1.63257982]
[1694073342602,0.27256427,25789.0,25788.0,1.63257982]
[1694073342881,0.23440324,25789.0,25788.0,1.63257982]
[1694073344487,0.27268726,25789.0,25788.0,1.63257982]
[1694073344746,0.27268855,25789.0,25788.0,1.63257982]
[1694073344975,0.23440324,25789.0,25788.0,1.63257982]
[1694073345217,0.27266856,25789.0,25788.0,1.63257982]
[1694073346147,0.50527848,25789.0,25788.0,1.63257982]
[1694073346386,0.27270841,25789.0,25788.0,1.63257982]
[1694073349625,0.50531833,25789.0,25788.0,1.63257982]
[1694073351622,0.31934728,25789.0,25788.0,1.63257982]
[1694073355777,0.08673736,25789.0,25788.0,1.63257982]
[1694073362801,0.08673736,25789.0,25788.0,1.67257982]
[1694073371367,0.31992667,25789.0,25788.0,1.67257982]
[1694073376702,0.31992667,25789.0,25788.0,1.63257982]
[1694073376915,0.47992667,25789.0,25788.0,1.63257982]
[1694073379362,0.24673736,25789.0,25788.0,1.63257982]
[1694073403906,0.24673736,25789.0,25788.0,1.60974387]
[1694073404320,0.24673736,25789.0,25788.0,1.63117631]
[1694073406743,0.24673736,25789.0,25788.0,0.85562231]
[1694073409330,0.24644148,25789.0,25788.0,0.85562231]
[1694073418365,0.55517393,25789.0,25788.0,0.85562231]
[1694073419834,0.83449716,25789.0,25788.0,0.85562231]
[1694073420420,0.83449716,25789.0,25788.0,0.08006831]
[1694073420668,2.94010053,25789.0,25788.0,0.08006831]
[1694073420877,3.0539115,25789.0,25788.0,0.08006831]
[1694073426997,3.21944452,25789.0,25788.0,0.08006831]
[1694073427219,3.15877041,25789.0,25788.0,0.08006831]
[1694073427436,3.33065026,25789.0,25788.0,0.08006831]
[1694073427645,3.26997576,25789.0,25788.0,0.08006831]
[1694073427863,3.15877041,25789.0,25788.0,0.08006831]
[1694073443257,3.03887041,25789.0,25788.0,0.08006831]
[1694073446929,3.03854222,25789.0,25788.0,0.08006831]
[1694073448112,0.52545728,25789.0,25788.0,0.08006831]
[1694073448360,0.24611329,25789.0,25788.0,0.08006831]
[1694073449606,0.24611329,25789.0,25788.0,0.85562231]
[1694073450319,0.24611329,25789.0,25788.0,0.08006831]
[1694073452317,0.24611329,25789.0,25788.0,0.85562231]
[1694073452930,0.2464419,25789.0,25788.0,0.85562231]
[1694073453807,0.2464419,25789.0,25788.0,1.63117631]
[1694073461265,0.2464419,25789.0,25788.0,0.85562231]
[1694073468628,0.2464419,25789.0,25788.0,0.08006831]
[1694073481562,0.52578589,25789.0,25788.0,0.08006831]
[1694073494238,0.52578589,25789.0,25788.0,0.85562231]
[1694073499697,0.2464419,25789.0,25788.0,0.85562231]
[1694073508062,0.2464419,25789.0,25788.0,0.08006831]
[1694073512173,0.2464419,25789.0,25788.0,0.07143244]
[1694073512608,0.2464419,25789.0,25788.0,0.07735528]
[1694073513437,1.0219659,25789.0,25788.0,0.07735528]
[1694073515796,1.30130989,25789.0,25788.0,0.07735528]
[1694073517665,1.30120681,25789.0,25788.0,0.07735528]
[1694073522982,2.07673081,25789.0,25788.0,0.07735528]
[1694073547561,0.52568281,25789.0,25788.0,0.07735528]
[1694073548263,0.24633882,25789.0,25788.0,0.07735528]
[1694073548475,0.52568281,25789.0,25788.0,0.07735528]
[1694073548686,0.24633882,25789.0,25788.0,0.07735528]
[1694073550711,0.52568281,25789.0,25788.0,0.07735528]
[1694073555564,0.24633882,25789.0,25788.0,0.07735528]
[1694073562947,0.44762003,25789.0,25788.0,0.07735528]
[1694073563158,0.72696402,25789.0,25788.0,0.07735528]
[1694073563368,0.44762003,25789.0,25788.0,0.07735528]
[1694073570827,0.72696402,25789.0,25788.0,0.07735528]
[1694073584298,0.72696402,25789.0,25788.0,0.07784001]
[1694073597227,0.44762003,25789.0,25788.0,0.07784001]
[1694073597414,0.50829385,25789.0,25788.0,0.07784001]
[1694073600291,0.44152145,25789.0,25788.0,0.07784001]
[1694073600542,0.50219546,25789.0,25788.0,0.07784001]
[1694073601305,0.62209546,25789.0,25788.0,0.07784001]
[1694073602005,0.71573798,25789.0,25788.0,0.07784001]
[1694073604491,0.71633798,25789.0,25788.0,0.07784001]
[1694073605476,0.99573344,25789.0,25788.0,0.07784001]
[1694073605714,0.62269546,25789.0,25788.0,0.07784001]
[1694073608411,0.46269546,25789.0,25788.0,0.07784001]
[1694073610333,0.62269546,25789.0,25788.0,0.07784001]
[1694073613531,0.50219546,25789.0,25788.0,0.07784001]
[1694073614460,0.50219546,25789.0,25788.0,0.05]
[1694073621310,0.60197852,25789.0,25788.0,0.05]
[1694073622135,0.60279909,25789.0,25788.0,0.05]
[1694073623187,0.72329909,25789.0,25788.0,0.05]
[1694073627088,1.10994436,25789.0,25788.0,0.05]
[1694073632319,1.0101613,25789.0,25788.0,0.05]
[1694073632960,1.0101613,25789.0,25788.0,0.07859242]
[1694073633163,0.8896613,25789.0,25788.0,0.07859242]
[1694073642715,1.20405916,25789.0,25788.0,0.07859242]
[1694073643146,1.32455916,25789.0,25788.0,0.07859242]
[1694073643566,1.47041562,25789.0,25788.0,0.07859242]
[1694073644184,1.47041562,25789.0,25788.0,0.05]
[1694073645914,1.47041562,25789.0,25788.0,0.07859754]
[1694073646131,0.95473655,25789.0,25788.0,0.07859754]
[1694073646374,1.53572585,25789.0,25788.0,0.07859754]
[1694073646591,1.33471655,25789.0,25788.0,0.05]
[1694073647023,1.33321655,25789.0,25788.0,0.05]
[1694073647242,1.57078946,25789.0,25788.0,0.05]
[1694073647453,1.56712946,25789.0,25788.0,0.05]
[1694073647671,1.56454946,25789.0,25788.0,0.05]
[1694073647919,1.55944946,25789.0,25788.0,0.05]
[1694073648135,1.49164946,25789.0,25788.0,0.05]
[1694073649152,1.345793,25789.0,25788.0,0.05]
[1694073650389,1.59060009,25789.0,25788.0,0.05]
[1694073650629,1.59390009,25789.0,25788.0,0.05]
[1694073650859,1.59294009,25789.0,25788.0,0.05]
[1694073651099,1.78534581,25789.0,25788.0,0.05]
[1694073651327,1.78480581,25789.0,25788.0,0.05]
[1694073651596,1.78354581,25789.0,25788.0,0.05]
[1694073651821,2.30985416,25789.0,25788.0,0.05]
[1694073652037,2.30991416,25789.0,25788.0,0.05]
[1694073652241,2.30997416,25789.0,25788.0,0.05]
[1694073652656,2.30979416,25789.0,25788.0,0.05]
[1694073653722,2.30895416,25789.0,25788.0,0.05]
[1694073653893,2.23515416,25789.0,25788.0,0.05]
[1694073654527,2.30451416,25789.0,25788.0,0.05]
[1694073654729,2.31123416,25789.0,25788.0,0.05]
[1694073655299,2.31141416,25789.0,25788.0,0.05]
[1694073655940,2.31153416,25789.0,25788.0,0.05]
[1694073656369,1.99709848,25789.0,25788.0,0.05]
[1694073656592,2.31146955,25789.0,25788.0,0.05]
[1694073656986,2.31152955,25789.0,25788.0,0.05]
[1694073657556,2.31632955,25789.0,25788.0,0.05]
[1694073657768,2.32382955,25789.0,25788.0,0.05]
[1694073657968,2.32532955,25789.0,25788.0,0.05]
[1694073658147,2.32424955,25789.0,25788.0,0.05]
[1694073658349,2.32376955,25789.0,25788.0,0.05]
[1694073658559,2.32520955,25789.0,25788.0,0.05]
[1694073658756,2.32556955,25789.0,25788.0,0.05]
[1694073658989,2.32406955,25789.0,25788.0,0.05]
[1694073659451,2.32154955,25789.0,25788.0,0.05]
[1694073659686,2.32148955,25789.0,25788.0,0.05]
[1694073659941,2.32142955,25789.0,25788.0,0.05]
[1694073660157,2.32244955,25789.0,25788.0,0.05]
[1694073660396,2.32394955,25789.0,25788.0,0.05]
[1694073660612,2.32046955,25789.0,25788.0,0.05]
[1694073660839,2.31992955,25789.0,25788.0,0.05]
[1694073661079,2.31848955,25789.0,25788.0,0.05]
[1694073661312,2.31818955,25789.0,25788.0,0.05]
[1694073661534,2.31536955,25789.0,25788.0,0.05]
[1694073661762,2.31530955,25789.0,25788.0,0.05]
[1694073662009,2.31566955,25789.0,25788.0,0.05]
[1694073662233,2.31368955,25789.0,25788.0,0.05]
[1694073662453,2.31416955,25789.0,25788.0,0.05]
[1694073662694,2.31188955,25789.0,25788.0,0.05]
[1694073662933,2.31194955,25789.0,25788.0,0.05]
[1694073663150,2.31188955,25789.0,25788.0,0.05]
[1694073663368,2.31170955,25789.0,25788.0,0.05]
[1694073663551,2.31158955,25789.0,25788.0,0.05]
[1694073663758,2.31134955,25789.0,25788.0,0.05]
[1694073663970,2.31008955,25789.0,25788.0,0.05]
[1694073664193,2.31044955,25789.0,25788.0,0.05]
[1694073664399,2.31050955,25789.0,25788.0,0.05]
[1694073664608,2.31056955,25789.0,25788.0,0.05]
[1694073664812,2.30984955,25789.0,25788.0,0.05]
[1694073665028,2.30828955,25789.0,25788.0,0.05]
[1694073665496,2.30822955,25789.0,25788.0,0.05]
[1694073665704,2.30846955,25789.0,25788.0,0.05]
[1694073666116,2.30960955,25789.0,25788.0,0.05]
[1694073666326,2.30966955,25789.0,25788.0,0.05]
[1694073666535,2.27670239,25789.0,25788.0,0.05]
[1694073666754,2.27508239,25789.0,25788.0,0.05]
[1694073666961,2.27532239,25789.0,25788.0,0.05]
[1694073667169,2.27538239,25789.0,25788.0,0.05]
[1694073667381,2.27526239,25789.0,25788.0,0.05]
[1694073667580,2.27508239,25789.0,25788.0,0.05]
[1694073667994,2.27502239,25789.0,25788.0,0.05]
[1694073668203,2.27496239,25789.0,25788.0,0.05]
[1694073668327,2.27478239,25789.0,25788.0,0.05]
[1694073668543,2.27472239,25789.0,25788.0,0.05]
[1694073668755,2.27514239,25789.0,25788.0,0.05]
[1694073669174,2.27502239,25789.0,25788.0,0.05]
[1694073669428,2.27478239,25789.0,25788.0,0.05]
[1694073669645,2.27394239,25789.0,25788.0,0.05]
[1694073669856,2.27412239,25789.0,25788.0,0.05]
[1694073670072,2.27448239,25789.0,25788.0,0.05]
[1694073670273,2.27436239,25789.0,25788.0,0.05]
[1694073670475,2.27430239,25789.0,25788.0,0.05]
[1694073670695,2.27166239,25789.0,25788.0,0.05]
[1694073670899,2.27190239,25789.0,25788.0,0.05]
[1694073671110,2.27166239,25789.0,25788.0,0.05]
[1694073671324,2.27136239,25789.0,25788.0,0.05]
[1694073671529,2.27130239,25789.0,25788.0,0.05]
[1694073671739,2.27334239,25789.0,25788.0,0.05]
[1694073671957,2.27436239,25789.0,25788.0,0.05]
[1694073672154,2.27430239,25789.0,25788.0,0.05]
[1694073672385,2.27418239,25789.0,25788.0,0.05]
[1694073672590,2.27424239,25789.0,25788.0,0.05]
[1694073673217,2.27286239,25789.0,25788.0,0.05]
[1694073673493,2.27238239,25789.0,25788.0,0.05]
[1694073673696,2.27232239,25789.0,25788.0,0.05]
[1694073673900,2.27220239,25789.0,25788.0,0.05]
[1694073674181,2.27118239,25789.0,25788.0,0.05]
[1694073674312,2.26992239,25789.0,25788.0,0.05]
[1694073674560,1.33491865,25789.0,25788.0,0.05]
[1694073674764,1.26777865,25789.0,25788.0,0.05]
[1694073676510,1.26777865,25789.0,25783.0,0.3471]
[1694073676511,0.04770504,25784.0,25783.0,0.3471]
[1694073676734,0.04770504,25784.0,25781.0,0.0932808]
[1694073676735,0.04770504,25782.0,25781.0,0.0009858]
[1694073676959,0.27065676,25782.0,25781.0,0.0009858]
[1694073677179,0.23386052,25782.0,25781.0,0.0009858]
[1694073677388,0.04,25780.0,25779.0,0.18278905]
[1694073677616,0.1330793,25780.0,25779.0,0.151947]
[1694073679110,0.1350793,25780.0,25779.0,0.175947]
[1694073679342,0.13538708,25780.0,25779.0,0.175947]
[1694073679566,0.13738708,25780.0,25779.0,0.199947]
[1694073682155,0.29738708,25780.0,25779.0,0.199947]
[1694073684742,0.29738708,25780.0,25779.0,0.22333237]
[1694073687380,0.20430778,25780.0,25779.0,0.34383237]
[1694073701635,0.74275559,25780.0,25779.0,0.07138537]
[1694073701854,0.35165447,25780.0,25779.0,0.07138537]
[1694073702286,0.35165447,25780.0,25779.0,0.048]
[1694073702761,0.44474393,25780.0,25779.0,0.048]
[1694073703631,0.30510228,25780.0,25779.0,0.048]
[1694073705892,0.30510228,25780.0,25779.0,0.07138537]
[1694073715297,0.25739724,25780.0,25779.0,0.07138537]
[1694073715517,0.16430778,25780.0,25779.0,0.36206295]
[1694073715747,0.16430778,25780.0,25779.0,0.74870822]
[1694073716180,0.16430778,25780.0,25779.0,0.7108256]
[1694073719451,0.164,25780.0,25779.0,0.7108256]
[1694073723538,0.16435131,25780.0,25779.0,0.7108256]
[1694073726773,0.24114755,25780.0,25779.0,0.07138537]
[1694073727007,0.30514581,25780.0,25779.0,0.07138537]
[1694073727840,0.21205635,25780.0,25779.0,0.07138537]
[1694073728265,0.30097103,25780.0,25779.0,0.07138537]
[1694073728689,0.21205635,25780.0,25779.0,0.07138537]
[1694073763503,0.30514094,25780.0,25779.0,0.07138537]
[1694073769603,0.04770504,25773.0,25772.0,1.20077075]
[1694073769815,0.04770504,25773.0,25772.0,0.77399416]
[1694073770028,0.13962557,25776.0,25771.0,0.1205]
[1694073770029,0.04770504,25772.0,25771.0,0.1205]
[1694073770717,0.04803497,25772.0,25771.0,0.1205]
[1694073771362,0.04803497,25772.0,25769.0,0.36898717]
[1694073771578,0.04803497,25772.0,25771.0,0.1205]
[1694073771850,0.05003497,25772.0,25771.0,0.1445]
[1694073773274,0.05203497,25772.0,25771.0,0.1685]
[1694073773694,0.07287847,25772.0,25771.0,0.1685]
[1694073773928,0.05203497,25772.0,25771.0,0.1685]
[1694073774613,0.05203497,25772.0,25771.0,0.048]
[1694073775907,0.21203497,25772.0,25771.0,0.048]
[1694073777257,0.21203497,25772.0,25771.0,0.06896201]
[1694073780474,0.16432993,25772.0,25771.0,0.18946201]
[1694073780717,0.16432993,25772.0,25771.0,0.60828298]
[1694073780941,0.16432993,25772.0,25771.0,0.62828298]
[1694073781156,0.16432993,25772.0,25771.0,0.72357794]
[1694073782543,0.16432993,25772.0,25771.0,0.69140224]
[1694073782544,0.164,25772.0,25771.0,0.69140224]
[1694073783973,0.164,25772.0,25771.0,0.63140224]
[1694073784209,0.164,25772.0,25771.0,0.61910728]
[1694073788422,0.164,25772.0,25771.0,0.59610728]
[1694073795667,0.1643303,25772.0,25771.0,0.59610728]
[1694073796637,0.164,25772.0,25771.0,0.59610728]
[1694073797422,0.164,25772.0,25771.0,0.47560728]
[1694073798665,0.1643303,25772.0,25771.0,0.59610728]
[1694073799614,0.164,25772.0,25771.0,0.59610728]
[1694073805608,0.1643303,25772.0,25771.0,0.59610728]
[1694073809734,0.164,25772.0,25771.0,0.59610728]
[1694073813337,0.164,25772.0,25771.0,0.68910155]
[1694073815487,0.164,25772.0,25771.0,1.05688219]
[1694073815709,0.164,25772.0,25771.0,2.43228969]
[1694073815927,0.164,25772.0,25771.0,2.25272115]
[1694073816175,0.164,25772.0,25771.0,2.25194115]
[1694073816366,0.164,25772.0,25771.0,2.25068115]
[1694073816578,0.164,25772.0,25771.0,2.25272115]
[1694073816799,0.164,25772.0,25771.0,2.01429547]
[1694073817014,0.164,25772.0,25771.0,2.24722136]
[1694073817228,0.164,25772.0,25771.0,2.24842136]
[1694073817471,0.164,25772.0,25771.0,2.24806136]
[1694073817686,0.164,25772.0,25771.0,2.02017547]
[1694073817899,0.164,25772.0,25771.0,2.25274577]
[1694073818117,0.164,25772.0,25771.0,2.25244577]
[1694073818332,0.164,25772.0,25771.0,2.03007547]
[1694073818557,0.164,25772.0,25771.0,2.16375547]
[1694073818785,0.164,25772.0,25771.0,2.16315547]
[1694073818996,0.164,25772.0,25771.0,2.03049547]
[1694073819227,0.164,25772.0,25771.0,2.03031547]
[1694073819445,0.164,25772.0,25771.0,2.03001547]
[1694073819659,0.164,25772.0,25771.0,2.01447547]
[1694073819873,0.164,25772.0,25771.0,2.24478417]
[1694073820087,0.164,25772.0,25771.0,2.24430417]
[1694073820308,0.164,25772.0,25771.0,2.24388417]
[1694073820513,0.164,25772.0,25771.0,2.24400417]
[1694073820730,0.164,25772.0,25771.0,2.24364417]
[1694073820913,0.164,25772.0,25771.0,2.24358417]
[1694073821173,0.164,25772.0,25771.0,2.24346417]
[1694073821597,0.164,25772.0,25771.0,2.24352417]
[1694073821810,0.159,25772.0,25771.0,2.24346417]
[1694073822015,0.159,25772.0,25771.0,2.24226417]
[1694073822232,0.159,25772.0,25771.0,2.24208417]
[1694073822440,0.159,25772.0,25771.0,2.24154417]
[1694073822696,0.159,25772.0,25771.0,2.24196417]
[1694073822900,0.159,25772.0,25771.0,2.24262417]
[1694073823106,0.159,25772.0,25771.0,2.24304417]
[1694073823324,0.159,25772.0,25771.0,2.24298417]
[1694073823540,0.159,25772.0,25771.0,2.24292417]
[1694073823750,0.159,25772.0,25771.0,2.24340417]
[1694073823969,0.159,25772.0,25771.0,2.24328417]
[1694073824173,0.159,25772.0,25771.0,2.24322417]
[1694073824390,0.159,25772.0,25771.0,2.24268417]
[1694073824614,0.159,25772.0,25771.0,2.24304417]
[1694073824827,0.159,25772.0,25771.0,2.24214417]
[1694073825035,0.159,25772.0,25771.0,2.24088417]
[1694073825473,0.159,25772.0,25771.0,2.23440417]
[1694073825683,0.159,25772.0,25771.0,2.15076778]
[1694073825884,0.159,25772.0,25771.0,2.15298778]
[1694073826085,0.159,25772.0,25771.0,2.15346778]
[1694073826298,0.159,25772.0,25771.0,2.15436778]
[1694073826504,0.159,25772.0,25771.0,2.15418778]
[1694073826713,0.159,25772.0,25771.0,2.15514778]
[1694073826922,0.159,25772.0,25771.0,2.15538778]
[1694073827131,0.159,25772.0,25771.0,2.15550778]
[1694073827391,0.159,25772.0,25771.0,2.15598778]
[1694073827603,0.159,25772.0,25771.0,2.15616778]
[1694073827843,0.159,25772.0,25771.0,2.15652778]
[1694073828067,0.159,25772.0,25771.0,2.15688778]
[1694073828270,0.159,25772.0,25771.0,2.15706778]
[1694073828497,0.159,25772.0,25771.0,2.15754778]
[1694073828700,0.159,25772.0,25771.0,2.15832778]
[1694073828906,0.159,25772.0,25771.0,2.15850778]
[1694073829316,0.159,25772.0,25771.0,2.15862778]
[1694073829492,0.159,25772.0,25771.0,2.18949343]
[1694073829700,0.159,25772.0,25771.0,2.18889343]
[1694073829904,0.159,25772.0,25771.0,2.18883343]
[1694073830110,0.159,25772.0,25771.0,2.18889343]
[1694073830344,0.159,25772.0,25771.0,2.18907343]
[1694073830556,0.159,25772.0,25771.0,2.38324343]
[1694073830759,0.159,25772.0,25771.0,2.38420343]
[1694073830966,0.159,25772.0,25771.0,2.38660343]
[1694073831171,0.159,25772.0,25771.0,2.38720343]
[1694073831383,0.159,25772.0,25771.0,2.38798343]
[1694073831589,0.159,25772.0,25771.0,2.38810343]
[1694073831789,0.159,25772.0,25771.0,2.38834343]
[1694073831990,0.159,25772.0,25771.0,2.38714343]
[1694073832167,0.159,25772.0,25771.0,2.38732343]
[1694073832396,0.159,25772.0,25771.0,2.38744343]
[1694073832606,0.159,25772.0,25771.0,2.38726343]
[1694073832820,0.159,25772.0,25771.0,2.38642343]
[1694073833021,0.159,25772.0,25771.0,2.38690343]
[1694073833242,0.159,25772.0,25771.0,2.39452343]
[1694073833466,0.159,25772.0,25771.0,2.39464343]
[1694073833671,0.159,25772.0,25771.0,2.39482343]
[1694073833876,0.159,25772.0,25771.0,2.38792343]
[1694073834079,0.159,25772.0,25771.0,2.38816343]
[1694073834258,0.159,25772.0,25771.0,2.38828343]
[1694073834586,0.159,25772.0,25771.0,2.39458343]
[1694073834796,0.159,25772.0,25771.0,2.39464343]
[1694073835004,0.159,25772.0,25771.0,2.39605886]
[1694073835215,0.159,25772.0,25771.0,2.39671886]
[1694073835419,0.159,25772.0,25771.0,2.39827886]
[1694073835624,0.159,25772.0,25771.0,2.39869886]
[1694073836073,0.159,25772.0,25771.0,2.20476886]
[1694073836282,0.159,25772.0,25771.0,2.20482886]
[1694073836490,0.159,25772.0,25771.0,2.20488886]
[1694073836699,0.159,25772.0,25771.0,2.19786886]
[1694073836890,0.159,25772.0,25771.0,2.19630886]
[1694073837299,0.159,25772.0,25771.0,2.20026886]
[1694073837498,0.159,25772.0,25771.0,2.20032886]
[1694073837702,0.159,25772.0,25771.0,2.20062886]
[1694073837906,0.159,25772.0,25771.0,2.20068886]
[1694073838201,0.159,25772.0,25771.0,2.20098886]
[1694073838613,0.159,25772.0,25771.0,2.20134886]
[1694073838792,0.159,25772.0,25771.0,2.20170886]
[1694073839032,0.159,25772.0,25771.0,2.20182886]
[1694073839216,0.159,25772.0,25771.0,2.20200886]
[1694073839428,0.159,25772.0,25771.0,2.20206886]
[1694073839637,0.159,25772.0,25771.0,2.20212886]
[1694073839815,0.159,25772.0,25771.0,2.20224886]
[1694073840196,0.159,25772.0,25771.0,2.20242886]
[1694073840409,0.159,25772.0,25771.0,2.20254886]
[1694073840620,0.159,25772.0,25771.0,2.20260886]
[1694073840825,0.159,25772.0,25771.0,2.20272886]
[1694073841033,0.1584,25772.0,25771.0,2.20584886]
[1694073841247,0.1584,25772.0,25771.0,2.21040886]
[1694073841447,0.1584,25772.0,25771.0,2.20914886]
[1694073841649,0.1584,25772.0,25771.0,2.20926886]
[1694073841861,0.1584,25772.0,25771.0,2.20920886]
[1694073842263,0.1584,25772.0,25771.0,2.20932886]
[1694073842469,0.1584,25772.0,25771.0,2.20938886]
[1694073842679,0.1584,25772.0,25771.0,2.20944886]
[1694073842918,0.1514,25774.0,25773.0,0.06]
[1694073843126,0.1514,25774.0,25773.0,0.68320216]
[1694073843337,0.1514,25774.0,25773.0,0.77304138]
[1694073843539,0.1514,25774.0,25773.0,0.77238138]
[1694073844182,0.1514,25774.0,25773.0,0.77088138]
[1694073844394,0.1534,25774.0,25773.0,0.79470138]
[1694073844592,0.1534,25774.0,25773.0,0.72702138]
[1694073844817,0.38574683,25774.0,25773.0,0.73102138]
[1694073845027,0.1554,25774.0,25773.0,0.73102138]
[1694073845451,0.1557303,25774.0,25773.0,0.73102138]
[1694073845666,0.1557303,25774.0,25773.0,0.63796449]
[1694073846735,0.1557303,25774.0,25773.0,0.61796449]
[1694073852865,0.1557303,25774.0,25773.0,0.59496449]
[1694073859904,0.15413525,25774.0,25773.0,0.59496449]
[1694073865172,0.15413525,25774.0,25773.0,0.68802138]
[1694073868814,0.15413525,25774.0,25773.0,1.80663705]
[1694073869235,0.15413525,25774.0,25773.0,0.68802138]
[1694073870714,0.15413525,25774.0,25773.0,1.80663745]
[1694073871453,0.15380495,25774.0,25773.0,1.80663745]
[1694073872283,0.15380495,25774.0,25773.0,0.59496449]
[1694073872726,0.15380495,25774.0,25773.0,0.68802138]
[1694073873104,0.15380495,25774.0,25773.0,1.80663932]
[1694073873752,0.15380495,25774.0,25773.0,1.80664093]
[1694073874126,0.15380495,25774.0,25773.0,1.8066409]
[1694073874850,0.15380495,25774.0,25773.0,0.68802138]
[1694073875201,0.15380495,25774.0,25773.0,1.80664403]
[1694073876741,0.15380495,25774.0,25773.0,1.94622937]
[1694073877177,0.15380495,25774.0,25773.0,1.80664403]
[1694073877667,0.15380495,25774.0,25773.0,1.8066243]
[1694073882576,0.15380495,25774.0,25773.0,0.68802138]
[1694073883139,0.15380495,25774.0,25773.0,1.80664766]
[1694073886020,0.15380495,25774.0,25773.0,0.68802138]
[1694073886807,0.15419155,25774.0,25773.0,0.68802138]